fUST/lending_fUST_20251228
["ID","MTS","AMOUNT","RATE_DAILY","PERIOD"]
[399943250,1766914446168,150.26,0.000121,2]
[399943252,1766914504156,150.27,0.000121,2]
[399943253,1766914566049,150.26,0.000121,2]
[399943255,1766914623982,150.27,0.000121,2]
[399943256,1766914634242,5000.0,0.00013172,2]
[399943257,1766914684826,-351.88880201,0.00013173,2]
[399943258,1766914685312,150.26,0.000121,2]
[399943259,1766914687513,-399.34941991,0.00013173,2]
[399943261,1766914744257,150.27,0.000121,2]
[399943262,1766914805793,153.05,0.000121,2]
[399943263,1766914817521,-247.3539234,0.00013173,2]
[399943264,1766914817543,-252.6460766,0.00013173,2]
[399943265,1766914819101,-232.30181117,0.00013173,2]
[399943266,1766914864455,150.83,0.000121,2]
[399943267,1766914921390,873.76812712,0.00013157,2]
[399943268,1766914925644,152.31,0.000121,2]
[399943269,1766914939213,-122.05211223,0.00013173,2]
[399943270,1766914939237,-170.42599164,0.00013214,2]
[399943271,1766914952936,367.73812263,0.00030134,120]
[399943272,1766914957689,352.84033265,0.00030134,120]
[399943273,1766914958456,342.15977431,0.00030134,120]
[399943274,1766914963743,224.49576805,0.00030134,120]
[399943275,1766914965225,488.92793214,0.00030134,120]
[399943276,1766914965447,420.71285771,0.00030134,120]
[399943277,1766914965825,331.07005994,0.00030134,120]
[399943278,1766914966968,486.61117014,0.00030134,120]
[399943279,1766914968731,272.74637343,0.00030134,120]
[399943280,1766914972128,406.29940351,0.00030134,120]
[399943281,1766914973424,512.87015614,0.00030134,120]
[399943282,1766914976398,383.01642818,0.00030134,120]
[399943283,1766914982256,425.87000531,0.00030134,120]
[399943284,1766914984136,288.12598256,0.00030134,120]
[399943285,1766914984419,151.12,0.000121,2]
[399943286,1766914988261,243.44786682,0.00030134,120]
[399943287,1766914988810,499.65200826,0.00030134,120]
[399943288,1766914988991,527.37317674,0.00030134,120]
[399943289,1766914989421,343.47646527,0.00030134,120]
[399943290,1766914990823,156.50653844,0.00025384,120]
[399943291,1766914990925,470.3388482,0.00030134,120]
[399943292,1766914994257,363.5525815,0.00030134,120]
[399943293,1766914995723,301.93924068,0.00030134,120]
[399943294,1766914997751,386.77193782,0.00030134,120]
[399943295,1766914999526,1661.87122,0.00030137,120]
[399943296,1766915000217,456.1592726,0.00030134,120]
[399943297,1766915001921,334.88780634,0.00030134,120]
[399943298,1766915004811,501.77856882,0.00030134,120]
[399943299,1766915004963,346.39564098,0.00030134,120]
[399943300,1766915006892,439.47584965,0.00030134,120]
[399943301,1766915008838,347.13803755,0.00030134,120]
[399943302,1766915010570,200.0,0.00028154,120]
[399943303,1766915010712,442.71961822,0.00030134,120]
[399943304,1766915011391,179.79942589,0.00030134,120]
[399943305,1766915013243,223.72,0.00030134,120]
[399943306,1766915014514,265.96583191,0.00030134,120]
[399943307,1766915016000,270.22871999,0.00030134,120]
[399943308,1766915016495,365.66995434,0.00030134,120]
[399943309,1766915026564,342.48390427,0.00030134,120]
[399943310,1766915027011,415.19249922,0.00030134,120]
[399943311,1766915027095,403.30875543,0.00030134,120]
[399943312,1766915031467,500.0,0.00030134,120]
[399943313,1766915031704,253.43181263,0.00030134,120]
[399943314,1766915032597,283.35399078,0.00030134,120]
[399943315,1766915033374,459.737551,0.00030134,120]
[399943316,1766915035505,500.0,0.00030134,120]
[399943317,1766915035743,290.32493066,0.00030134,120]
[399943318,1766915038101,305.58470372,0.00030134,120]
[399943319,1766915042261,500.0,0.00030134,120]
[399943320,1766915042293,228.16372479,0.00030134,120]
[399943321,1766915042528,373.94579685,0.00030134,120]
[399943322,1766915045029,151.92,0.000121,2]
[399943323,1766915047360,150.77858317,0.00030134,120]
[399943324,1766915051585,497.71228405,0.00030134,120]
[399943325,1766915052608,500.0,0.00030134,120]
[399943326,1766915052866,192.26336654,0.00030134,120]
[399943327,1766915054661,503.37015906,0.00030134,120]
[399943328,1766915061005,311.79409396,0.00030134,120]
[399943329,1766915063485,526.96826158,0.00030134,120]
[399943330,1766915064453,358.56606357,0.00030134,120]
[399943331,1766915064603,496.84809073,0.00030134,120]
[399943332,1766915067683,306.94047184,0.00030134,120]
[399943333,1766915068614,177.03689491,0.00030134,120]
[399943334,1766915069250,500.0,0.00030134,120]
[399943335,1766915069486,188.27692857,0.00030134,120]
[399943336,1766915069680,414.61454195,0.00030134,120]
[399943337,1766915071661,312.25489074,0.00030134,120]
[399943338,1766915072126,500.0,0.00030134,120]
[399943339,1766915072351,183.96985984,0.00030134,120]
[399943340,1766915077153,165.57010076,0.00030134,120]
[399943341,1766915078059,273.01590884,0.00030134,120]
[399943342,1766915079385,390.69010419,0.00030134,120]
[399943343,1766915081729,212.75245071,0.00030134,120]
[399943344,1766915083496,513.093159,0.00030134,120]
[399943345,1766915083880,484.0365334,0.00030134,120]
[399943346,1766915084249,169.25249567,0.00030134,120]
[399943347,1766915087254,219.98285975,0.00030134,120]
[399943348,1766915087798,500.0,0.00030134,120]
[399943349,1766915088027,391.38962398,0.00030134,120]
[399943350,1766915089076,598.55185713,0.00030134,120]
[399943351,1766915090998,362.51433289,0.00030134,120]
[399943352,1766915092760,468.07293434,0.00030134,120]
[399943353,1766915094516,487.02836293,0.00030134,120]
[399943354,1766915096249,484.27273657,0.00030134,120]
[399943355,1766915097199,500.0,0.00030134,120]
[399943356,1766915097430,388.02598123,0.00030134,120]
[399943357,1766915098232,463.1917795,0.00030134,120]
[399943358,1766915098431,379.1701626,0.00030134,120]
[399943359,1766915102561,204.71230553,0.00030134,120]
[399943360,1766915102742,165.75658225,0.00030134,120]
[399943361,1766915103141,500.02,0.00030137,120]
[399943362,1766915104482,151.28,0.000121,2]
[399943363,1766915105397,205.60264812,0.00030134,120]
[399943364,1766915106365,302.17619142,0.00030134,120]
[399943365,1766915106773,217.4408351,0.00030134,120]
[399943366,1766915107738,180.0,0.00030134,120]
[399943367,1766915109128,300.0,0.00014089,120]
[399943368,1766915110254,180.0,0.00030134,120]
[399943369,1766915110856,300.0,0.00014089,120]
[399943370,1766915112330,361.19836245,0.00030134,120]
[399943371,1766915112523,180.0,0.00030134,120]
[399943372,1766915112571,300.0,0.00014089,120]
[399943373,1766915114324,300.0,0.00014089,120]
[399943374,1766915114961,180.0,0.00030134,120]
[399943375,1766915116046,300.0,0.00014089,120]
[399943376,1766915117765,300.0,0.00014089,120]
[399943377,1766915117919,372.75938144,0.00030134,120]
[399943378,1766915118717,180.0,0.00030134,120]
[399943379,1766915119502,300.0,0.00014089,120]
[399943380,1766915120189,516.32130123,0.00030134,120]
[399943381,1766915120630,500.0,0.00030134,120]
[399943382,1766915120890,500.0,0.00030134,120]
[399943383,1766915121132,223.10342685,0.00030134,120]
[399943384,1766915121259,300.0,0.00014089,120]
[399943385,1766915121289,180.0,0.00030134,120]
[399943386,1766915121744,350.58820964,0.00030134,120]
[399943387,1766915121934,180.12511515,0.00030134,120]
[399943388,1766915122963,227.0381404,0.00030134,120]
[399943389,1766915123161,299.47,0.00014089,120]
[399943390,1766915123873,180.0,0.00030134,120]
[399943391,1766915124845,235.90862276,0.00030134,120]
[399943392,1766915125990,267.79523186,0.00030134,120]
[399943393,1766915126241,180.0,0.00030134,120]
[399943394,1766915126558,486.39381052,0.00030134,120]
[399943395,1766915126589,199.94291606,0.00030134,120]
[399943396,1766915128250,419.7267536,0.00030134,120]
[399943397,1766915128585,180.0,0.00030134,120]
[399943398,1766915128696,351.43814189,0.00030134,120]
[399943399,1766915130983,180.0,0.00030134,120]
[399943400,1766915132845,487.8275342,0.00030134,120]
[399943401,1766915133160,262.67608274,0.00030134,120]
[399943402,1766915133332,159.60419312,0.00030134,120]
[399943403,1766915133921,178.92747316,0.00030134,120]
[399943404,1766915134531,500.0,0.00030134,120]
[399943405,1766915134796,361.69090055,0.00030134,120]
[399943406,1766915135709,434.3563925,0.00030134,120]
[399943407,1766915136226,287.88685635,0.00030134,120]
[399943408,1766915137517,299.32563147,0.00030134,120]
[399943409,1766915138358,500.0,0.00030134,120]
[399943410,1766915138601,583.44207873,0.00030134,120]
[399943411,1766915139263,229.91047362,0.00030134,120]
[399943412,1766915139762,462.95873513,0.00030134,120]
[399943413,1766915141371,447.15668705,0.00030134,120]
[399943414,1766915141620,415.85054976,0.00030134,120]
[399943415,1766915142984,245.97782054,0.00030134,120]
[399943416,1766915143172,315.36907201,0.00030134,120]
[399943417,1766915143527,467.36612176,0.00030134,120]
[399943418,1766915144706,229.32808223,0.00030134,120]
[399943419,1766915145558,285.15234621,0.00030134,120]
[399943420,1766915146082,455.19705019,0.00030134,120]
[399943421,1766915147380,478.93043932,0.00030134,120]
[399943422,1766915147859,160.57934504,0.00030134,120]
[399943423,1766915151537,538.18576918,0.00030134,120]
[399943424,1766915153777,219.07710562,0.00030134,120]
[399943425,1766915156667,764.54711123,0.00013154,2]
[399943426,1766915158525,502.42420929,0.00030134,120]
[399943427,1766915159405,172.81359763,0.00030134,120]
[399943428,1766915165078,352.26015689,0.00030134,120]
[399943429,1766915165890,151.71,0.000121,2]
[399943430,1766915167741,313.65973507,0.00030134,120]
[399943431,1766915168284,232.91396563,0.00030134,120]
[399943432,1766915168418,361.45585648,0.00030134,120]
[399943433,1766915170101,402.99143891,0.00030134,120]
[399943434,1766915170139,405.47339773,0.00030134,120]
[399943435,1766915170845,229.62321998,0.00030134,120]
[399943436,1766915171890,175.78363833,0.00030134,120]
[399943437,1766915172580,555.08076152,0.00030134,120]
[399943438,1766915173064,1643.2799,0.00030137,120]
[399943439,1766915175214,466.62394639,0.00030134,120]
[399943440,1766915176034,208.47921673,0.00030134,120]
[399943441,1766915179746,396.24040495,0.00030134,120]
[399943442,1766915183533,221.60487376,0.00030134,120]
[399943443,1766915184921,471.11663573,0.00030134,120]
[399943444,1766915186529,213.37941681,0.00030134,120]
[399943445,1766915188602,432.90613097,0.00030134,120]
[399943446,1766915189329,424.99294223,0.00030134,120]
[399943447,1766915192310,198.46963649,0.00030134,120]
[399943448,1766915192857,389.44462533,0.00030134,120]
[399943449,1766915194953,424.53070958,0.00030134,120]
[399943450,1766915197325,484.52818704,0.00030134,120]
[399943451,1766915200693,459.02082517,0.00030134,120]
[399943452,1766915202819,459.98185298,0.00030134,120]
[399943453,1766915203783,500.0,0.00030134,120]
[399943454,1766915204012,220.9827971,0.00030134,120]
[399943455,1766915204045,312.92509368,0.00030134,120]
[399943456,1766915204700,426.37157793,0.00030134,120]
[399943457,1766915206769,459.75112982,0.00030134,120]
[399943458,1766915209915,454.35721933,0.00030134,120]
[399943459,1766915212231,262.81578723,0.00030134,120]
[399943460,1766915212291,518.73082521,0.00030134,120]
[399943461,1766915215791,502.83013698,0.00030134,120]
[399943462,1766915221697,493.3949243,0.00030134,120]
[399943463,1766915223199,277.28685562,0.00030134,120]
[399943464,1766915223706,397.11972632,0.00030134,120]
[399943465,1766915224515,151.36,0.000121,2]
[399943466,1766915225029,494.7238089,0.00030134,120]
[399943467,1766915225546,209.66274491,0.00030134,120]
[399943468,1766915226501,229.42339706,0.00030134,120]
[399943469,1766915227989,252.46301747,0.00030134,120]
[399943470,1766915228784,169.23898915,0.00030134,120]
[399943471,1766915230636,268.96538375,0.00030134,120]
[399943472,1766915231692,347.52569704,0.00030134,120]
[399943473,1766915233048,184.8005115,0.00030134,120]
[399943474,1766915234617,362.88383677,0.00030134,120]
[399943475,1766915236273,477.24323668,0.00030134,120]
[399943476,1766915238109,213.18142449,0.00030134,120]
[399943477,1766915239307,503.32744155,0.00030134,120]
[399943478,1766915241139,480.0,0.00030134,120]
[399943479,1766915241387,400.52730698,0.00030134,120]
[399943480,1766915241626,247.93892172,0.00030134,120]
[399943481,1766915243502,272.83785714,0.00030134,120]
[399943482,1766915244502,249.32862296,0.00030134,120]
[399943483,1766915244856,168.93132118,0.00030134,120]
[399943484,1766915246800,285.38720656,0.00030134,120]
[399943485,1766915248522,503.48507145,0.00030134,120]
[399943486,1766915256089,531.44983797,0.00030134,120]
[399943487,1766915257048,260.17953477,0.00030134,120]
[399943488,1766915258880,179.68791219,0.00030134,120]
[399943489,1766915262085,229.15862586,0.0003013,120]
[399943490,1766915262667,293.65213816,0.00030134,120]
[399943491,1766915263736,384.59695393,0.00030134,120]
[399943492,1766915263970,249.49875014,0.00030134,120]
[399943493,1766915266736,393.03400662,0.00030134,120]
[399943494,1766915270420,483.07571319,0.00030134,120]
[399943495,1766915271026,459.53683054,0.00030134,120]
[399943496,1766915273767,266.90595847,0.00030134,120]
[399943497,1766915274293,261.4833658,0.00030134,120]
[399943498,1766915277082,377.29286561,0.00030134,120]
[399943499,1766915279078,418.13082593,0.00030134,120]
[399943500,1766915279512,442.61760462,0.00030134,120]
[399943501,1766915281490,295.25833353,0.00030134,120]
[399943502,1766915281522,367.50917379,0.00030134,120]
[399943503,1766915282574,360.76953016,0.00030134,120]
[399943504,1766915284084,475.70262785,0.00030134,120]
[399943505,1766915284574,196.97743707,0.00030134,120]
[399943506,1766915284783,151.6,0.000121,2]
[399943507,1766915285128,444.70969734,0.00030134,120]
[399943508,1766915285337,437.80974808,0.00030134,120]
[399943509,1766915288351,444.98000369,0.00030134,120]
[399943510,1766915288381,472.40574498,0.00030134,120]
[399943511,1766915288718,248.16033916,0.00030134,120]
[399943512,1766915289022,182.54404878,0.00030134,120]
[399943513,1766915291148,217.73379924,0.00030134,120]
[399943514,1766915293182,234.16514169,0.00030134,120]
[399943515,1766915294631,450.98804952,0.00030134,120]
[399943516,1766915294854,170.11909663,0.00030134,120]
[399943517,1766915299607,307.43355781,0.00030134,120]
[399943518,1766915300273,460.14452611,0.00030134,120]
[399943519,1766915304641,462.49623103,0.00030134,120]
[399943520,1766915307383,409.45514027,0.00030134,120]
[399943521,1766915308086,284.643718,0.00030134,120]
[399943522,1766915312335,245.04527674,0.00030134,120]
[399943523,1766915313809,302.18556432,0.00030134,120]
[399943524,1766915314019,419.01678888,0.00030134,120]
[399943525,1766915318830,468.98379116,0.00030134,120]
[399943526,1766915320479,358.81853175,0.00030134,120]
[399943527,1766915320614,275.22019382,0.00030134,120]
[399943528,1766915322375,487.73425401,0.00030134,120]
[399943529,1766915328242,391.90851456,0.00030134,120]
[399943530,1766915333053,396.55844414,0.00030134,120]
[399943531,1766915341378,373.60633134,0.00030134,120]
[399943532,1766915343133,260.19250575,0.00030134,120]
[399943533,1766915344252,151.41,0.000121,2]
[399943534,1766915345354,439.12959201,0.00030134,120]
[399943535,1766915350124,451.8525501,0.00030134,120]
[399943536,1766915351471,474.6235066,0.00030134,120]
[399943537,1766915354873,462.89681995,0.00030134,120]
[399943538,1766915355095,438.41262545,0.00030134,120]
[399943539,1766915360404,549.68897114,0.00030134,120]
[399943540,1766915363150,284.07936791,0.00030134,120]
[399943541,1766915366469,443.78986919,0.00030134,120]
[399943542,1766915368512,474.31655942,0.00030134,120]
[399943543,1766915370166,-178.18572827,0.00013232,2]
[399943544,1766915370187,-300.0,0.00013251,2]
[399943545,1766915370208,-119.83308156,0.00013251,2]
[399943546,1766915370408,491.72382989,0.00030134,120]
[399943547,1766915371657,238.43023072,0.00030134,120]
[399943548,1766915375318,494.49169804,0.00030134,120]
[399943549,1766915381724,247.40760594,0.00030134,120]
[399943550,1766915383893,354.55685067,0.00030134,120]
[399943551,1766915384526,180.94983347,0.00030134,120]
[399943552,1766915385824,209.69556131,0.00030134,120]
[399943553,1766915388942,185.6434203,0.00030134,120]
[399943554,1766915391184,463.54863893,0.00030134,120]
[399943555,1766915392958,345.25194322,0.00030134,120]
[399943556,1766915393474,317.8255812,0.00030134,120]
[399943557,1766915394777,347.05982625,0.00030134,120]
[399943558,1766915396967,668.9787223,0.00013152,2]
[399943559,1766915400769,207.65979845,0.00030134,120]
[399943560,1766915403980,228.54229688,0.00030134,120]
[399943561,1766915404651,411.97970858,0.00030134,120]
[399943562,1766915405817,151.53,0.000121,2]
[399943563,1766915406659,399.96543065,0.00030134,120]
[399943564,1766915410118,244.46075776,0.00030134,120]
[399943565,1766915410669,480.65200497,0.00030134,120]
[399943566,1766915420014,350.9685258,0.00030134,120]
[399943567,1766915425593,250.26254897,0.00030134,120]
[399943568,1766915425949,331.44863825,0.00030134,120]
[399943569,1766915427744,352.55680945,0.00030134,120]
[399943570,1766915427844,200.0,0.00027,120]
[399943571,1766915428099,218.97262,0.000279,120]
[399943572,1766915429675,328.9427481,0.00030134,120]
[399943573,1766915429781,207.20331099,0.00030134,120]
[399943574,1766915430156,389.90127,0.00029,120]
[399943586,1766915431590,-300.0,0.0001325,2]
[399943587,1766915431600,-69.579,0.0001325,2]
[399943588,1766915431613,-390.421,0.0001325,2]
[399943589,1766915431622,-222.22991569,0.0001325,2]
[399943590,1766915431646,-385.77008431,0.0001325,2]
[399943591,1766915431655,-380.16691844,0.00013251,2]
[399943592,1766915431665,-471.36086051,0.00013251,2]
[399943593,1766915432456,264.70672042,0.00030134,120]
[399943594,1766915432717,493.54656573,0.00030134,120]
[399943595,1766915434913,167.46210904,0.00030134,120]
[399943596,1766915435465,719.07052,0.00027,120]
[399943597,1766915435625,719.07052,0.000279,120]
[399943598,1766915435914,719.07052,0.000288,120]
[399943599,1766915436033,360.9033839,0.00030134,120]
[399943600,1766915436225,719.07052,0.000297,120]
[399943612,1766915437626,-385.47920471,0.00013251,2]
[399943614,1766915437636,-500.0,0.00013251,2]
[399943616,1766915437645,-500.0,0.00013251,2]
[399943618,1766915437657,-500.0,0.00013251,2]
[399943620,1766915437667,-500.0,0.00013251,2]
[399943622,1766915437677,-500.0,0.00013251,2]
[399943624,1766915437686,-500.0,0.00013251,2]
[399943626,1766915437696,-500.0,0.00013251,2]
[399943628,1766915437705,-238.29966533,0.00013251,2]
[399943630,1766915437714,-500.0,0.00013251,2]
[399943632,1766915437724,-358.41194356,0.00013251,2]
[399943634,1766915437733,-474.71070218,0.00013251,2]
[399943637,1766915437749,-25.28929782,0.00013251,2]
[399943639,1766915437759,-500.0,0.00013251,2]
[399943641,1766915437768,-400.13017291,0.00013251,2]
[399943643,1766915437790,-99.86982709,0.00013251,2]
[399943644,1766915437799,-500.0,0.00013251,2]
[399943645,1766915438042,-500.0,0.00013251,2]
[399943646,1766915438052,-500.0,0.00013251,2]
[399943647,1766915438062,-500.0,0.00013251,2]
[399943648,1766915438073,-500.0,0.00013251,2]
[399943649,1766915438083,-500.0,0.00013251,2]
[399943650,1766915438092,-28.63913949,0.00013251,2]
[399943651,1766915438102,-306.4082745,0.00013251,2]
[399943652,1766915438111,-500.0,0.00013251,2]
[399943653,1766915438120,-500.0,0.00013251,2]
[399943654,1766915438129,-500.0,0.00013251,2]
[399943655,1766915438139,-573.03925483,0.00013251,2]
[399943656,1766915438148,-437.79957641,0.00013251,2]
[399943657,1766915438157,-215.31106404,0.00013251,2]
[399943658,1766915438167,-27383.7045688,0.00013252,2]
[399943659,1766915438178,-1223.12403375,0.00013252,2]
[399943705,1766915439987,-4958.17270198,0.00013252,2]
[399943719,1766915442496,176.0747296,0.00030134,120]
[399943727,1766915443773,-16434.99869547,0.00013252,2]
[399943728,1766915443782,-249.95610481,0.00013273,2]
[399943729,1766915443791,-112.98845041,0.00013273,2]
[399943736,1766915445334,218.44088436,0.00030134,120]
[399943799,1766915448492,221.81013834,0.00030134,120]
[399943800,1766915452773,474.11620542,0.00030134,120]
[399943801,1766915457577,242.34773639,0.00030134,120]
[399943802,1766915461703,420.11212654,0.00030134,120]
[399943803,1766915462543,237.16038461,0.00030134,120]
[399943804,1766915464310,476.48389789,0.00030134,120]
[399943805,1766915464934,151.44,0.000121,2]
[399943806,1766915468490,470.75047422,0.00030134,120]
[399943807,1766915470255,227.84107398,0.00030134,120]
[399943808,1766915475024,486.51848038,0.00030134,120]
[399943809,1766915476832,541.41867779,0.00030134,120]
[399943810,1766915477124,488.48722444,0.00030134,120]
[399943811,1766915477721,261.51711062,0.00030134,120]
[399943812,1766915479123,328.64599867,0.00030134,120]
[399943813,1766915482103,203.92655526,0.00030134,120]
[399943814,1766915485479,236.32119895,0.00030134,120]
[399943815,1766915486478,493.94069301,0.00030134,120]
[399943816,1766915486811,300.0,0.0001411,120]
[399943817,1766915488322,300.0,0.0001411,120]
[399943818,1766915488820,221.34397467,0.00030134,120]
[399943819,1766915490878,497.64042469,0.00030134,120]
[399943820,1766915494110,446.16626421,0.00030134,120]
[399943821,1766915496565,296.11959483,0.00030134,120]
[399943822,1766915496665,285.93484304,0.00030134,120]
[399943823,1766915496946,389.83131248,0.00030134,120]
[399943824,1766915499796,171.82588693,0.00030134,120]
[399943825,1766915500477,414.34665682,0.00030134,120]
[399943826,1766915500568,311.9943589,0.00030134,120]
[399943827,1766915505361,240.13780726,0.00030134,120]
[399943828,1766915507012,406.16129128,0.00030134,120]
[399943829,1766915507131,488.60197841,0.00030134,120]
[399943830,1766915511041,246.7692842,0.00030134,120]
[399943831,1766915512955,334.07729983,0.00030134,120]
[399943832,1766915513571,196.05295985,0.00030134,120]
[399943833,1766915516977,242.14018034,0.00030134,120]
[399943834,1766915517368,238.41030365,0.00030134,120]
[399943835,1766915518967,207.71407135,0.00030134,120]
[399943836,1766915520775,461.57482947,0.00030134,120]
[399943837,1766915521128,330.600112,0.00030134,120]
[399943838,1766915522447,413.16365299,0.00030134,120]
[399943839,1766915523511,220.90680034,0.00030134,120]
[399943840,1766915524883,151.49,0.00012,2]
[399943841,1766915525361,168.44648552,0.00030134,120]
[399943842,1766915525792,436.33758151,0.00030134,120]
[399943843,1766915527563,215.68403177,0.00030134,120]
[399943844,1766915528012,181.9087663,0.00030134,120]
[399943845,1766915528254,394.60210087,0.00030134,120]
[399943846,1766915530368,238.66514179,0.00030134,120]
[399943847,1766915532162,623.36468103,0.00030134,120]
[399943848,1766915533844,157.76802666,0.00030134,120]
[399943849,1766915535662,460.63388249,0.00030134,120]
[399943850,1766915537457,200.0,0.00030134,120]
[399943851,1766915537673,200.0,0.00030134,120]
[399943852,1766915537906,200.0,0.00030134,120]
[399943853,1766915538137,200.0,0.00030134,120]
[399943854,1766915538326,277.0359614,0.00030134,120]
[399943855,1766915538374,200.0,0.00030134,120]
[399943856,1766915538603,200.0,0.00030134,120]
[399943857,1766915538848,200.0,0.00030134,120]
[399943858,1766915538877,236.50268082,0.00030134,120]
[399943859,1766915538991,267.13822899,0.00030134,120]
[399943860,1766915539095,200.0,0.00030134,120]
[399943861,1766915539325,200.0,0.00030134,120]
[399943862,1766915539550,200.0,0.00030134,120]
[399943863,1766915539796,200.0,0.00030134,120]
[399943864,1766915539857,406.34184659,0.00030134,120]
[399943865,1766915540026,200.0,0.00030134,120]
[399943866,1766915540253,200.0,0.00030134,120]
[399943867,1766915540485,200.0,0.00030134,120]
[399943868,1766915540722,200.0,0.00030134,120]
[399943869,1766915541056,200.0,0.00030134,120]
[399943870,1766915541285,200.0,0.00030134,120]
[399943871,1766915541516,309.50769765,0.00030134,120]
[399943872,1766915543377,458.92333094,0.00030134,120]
[399943873,1766915544653,402.45094631,0.00030134,120]
[399943874,1766915545963,465.88358547,0.00030134,120]
[399943875,1766915546189,544.88914211,0.00030134,120]
[399943876,1766915548041,189.47155709,0.00030134,120]
[399943877,1766915548831,509.59193041,0.00030134,120]
[399943878,1766915550771,325.14015373,0.00030134,120]
[399943879,1766915551706,199.82578944,0.00030134,120]
[399943880,1766915552222,241.92598492,0.00030134,120]
[399943881,1766915554623,384.42426307,0.00030134,120]
[399943882,1766915555892,500.0,0.00030134,120]
[399943883,1766915556369,281.95685953,0.00030134,120]
[399943884,1766915560373,486.55020363,0.00030134,120]
[399943885,1766915561565,500.0,0.00030134,120]
[399943886,1766915561798,259.2460613,0.00030134,120]
[399943887,1766915562527,313.8466057,0.00030134,120]
[399943888,1766915563372,502.88365552,0.00030134,120]
[399943889,1766915563402,496.68002159,0.00030134,120]
[399943890,1766915563612,318.84396182,0.00030134,120]
[399943891,1766915564825,230.5585157,0.00030134,120]
[399943892,1766915571762,161.5417406,0.00030134,120]
[399943893,1766915573927,164.59997944,0.00030134,120]
[399943894,1766915574167,491.05218546,0.00030134,120]
[399943895,1766915574698,267.48253009,0.00030134,120]
[399943896,1766915580974,270.8631956,0.00030134,120]
[399943897,1766915581036,161.65907184,0.00030134,120]
[399943898,1766915582885,475.46034685,0.00030134,120]
[399943899,1766915583087,261.16095067,0.00030134,120]
[399943900,1766915584843,151.57,0.00012,2]
[399943901,1766915587155,416.21146002,0.00030134,120]
[399943902,1766915588230,382.20836733,0.00030134,120]
[399943903,1766915590539,344.01001381,0.00030134,120]
[399943904,1766915590741,481.85676423,0.00030134,120]
[399943905,1766915595919,404.52884788,0.00030134,120]
[399943906,1766915596999,196.85299854,0.00030134,120]
[399943907,1766915601012,374.54395109,0.00030134,120]
[399943908,1766915601659,246.7757912,0.00030134,120]
[399943909,1766915604774,200.85305434,0.00030134,120]
[399943910,1766915605654,450.96817024,0.00030134,120]
[399943911,1766915607451,459.43872497,0.00030134,120]
[399943912,1766915607811,287.77850938,0.00030134,120]
[399943913,1766915609365,539.08171113,0.00030134,120]
[399943914,1766915612456,464.94183081,0.00030134,120]
[399943915,1766915616088,368.19006139,0.00030134,120]
[399943916,1766915616783,420.15995506,0.00030134,120]
[399943917,1766915621340,176.18276269,0.00030134,120]
[399943918,1766915621777,367.57,0.00030134,120]
[399943919,1766915622436,500.0,0.00030134,120]
[399943920,1766915622666,190.84876919,0.00030134,120]
[399943921,1766915625624,441.91890874,0.00030134,120]
[399943922,1766915625963,306.72464076,0.00030134,120]
[399943923,1766915626180,207.68795521,0.00030134,120]